bitfinex/quotes_BTCUSD_20250727
["timestamp","ask_amount","ask_price","bid_price","bid_amount"]
[1753594586262,0.18414164,118390.0,118380.0,0.85776757]
[1753594586915,0.18414164,118390.0,118380.0,0.8662148]
[1753594587328,0.18414164,118390.0,118380.0,0.8693548]
[1753594588814,0.19258815,118390.0,118380.0,0.88624889]
[1753594603093,0.04054785,118390.0,118380.0,0.88624839]
[1753594604231,0.0489945,118390.0,118380.0,0.88624839]
[1753594606486,0.03210127,118390.0,118380.0,0.88624839]
[1753594606732,0.03014127,118390.0,118380.0,1.20173378]
[1753594607985,0.02169454,118390.0,118380.0,1.23353378]
[1753594609038,0.03858721,118390.0,118380.0,1.23353378]
[1753594610313,0.03014084,118390.0,118380.0,1.23353378]
[1753594610582,0.02169454,118390.0,118380.0,1.23353378]
[1753594610823,0.03014084,118390.0,118380.0,1.23353378]
[1753594612519,0.04508728,118390.0,118380.0,1.23353378]
[1753594613171,0.05353379,118390.0,118380.0,1.21793378]
[1753594614716,0.04508728,118390.0,118380.0,1.21793378]
[1753594617152,0.03664084,118390.0,118380.0,1.21793378]
[1753594617362,0.04508728,118390.0,118380.0,1.21793378]
[1753594618157,0.04508721,118390.0,118380.0,1.21793378]
[1753594618544,0.04508721,118390.0,118380.0,1.42081378]
[1753594618770,0.03858721,118390.0,118380.0,1.42081378]
[1753594619042,0.03858721,118390.0,118380.0,1.43641378]
[1753594620006,0.03858721,118390.0,118380.0,1.42081378]
[1753594620429,0.01324846,118390.0,118380.0,1.42081378]
[1753594620631,0.03014062,118390.0,118380.0,1.42081378]
[1753594620833,0.03858692,118390.0,118380.0,1.42081378]
[1753594621047,0.03014062,118390.0,118380.0,1.42988557]
[1753594621262,0.03858692,118390.0,118380.0,1.42081378]
[1753594621892,0.03858685,118390.0,118380.0,0.789843]
[1753594622106,0.03858685,118390.0,118380.0,1.42081378]
[1753594622807,0.02169454,118390.0,118380.0,1.43691378]
[1753594623728,0.03014077,118390.0,118380.0,1.43691378]
[1753594623866,0.02169447,118390.0,118380.0,1.43691378]
[1753594625404,0.01324846,118390.0,118380.0,1.42081378]
[1753594625600,0.02169447,118390.0,118380.0,1.42081378]
[1753594628648,0.01324846,118390.0,118380.0,1.42081378]
[1753594628893,0.01324846,118390.0,118380.0,1.42988557]
[1753594629111,0.02169447,118390.0,118380.0,1.42081378]
[1753594630485,0.01324846,118390.0,118380.0,1.42081378]
[1753594631118,0.01324846,118390.0,118380.0,1.43671378]
[1753594633091,0.01324846,118390.0,118380.0,1.42081378]
[1753594634237,0.02169461,118390.0,118380.0,1.42081378]
[1753594635972,0.03014098,118390.0,118380.0,1.42081378]
[1753594636193,0.03014098,118390.0,118380.0,1.40461378]
[1753594636406,0.03014091,118390.0,118380.0,1.40461378]
[1753594637064,0.02169461,118390.0,118380.0,1.40461378]
[1753594637279,0.03014084,118390.0,118380.0,1.42081378]
[1753594638445,0.03014084,118390.0,118380.0,1.40461378]
[1753594639166,0.03858721,118390.0,118380.0,1.40461378]
[1753594639387,0.03014084,118390.0,118380.0,1.40461378]
[1753594639811,0.03858721,118390.0,118380.0,1.40461378]
[1753594640588,0.03858714,118390.0,118380.0,1.40461378]
[1753594641148,0.03014084,118390.0,118380.0,1.41368557]
[1753594641362,0.03014084,118390.0,118380.0,1.40461378]
[1753594641597,0.03858714,118390.0,118380.0,1.40461378]
[1753594644405,0.03014084,118390.0,118380.0,1.40461378]
[1753594644618,0.03858721,118390.0,118380.0,1.40461378]
[1753594644816,0.03014084,118390.0,118380.0,1.40461378]
[1753594645881,0.03858714,118390.0,118380.0,1.40461378]
[1753594646531,0.03014084,118390.0,118380.0,1.40461378]
[1753594647809,0.03858721,118390.0,118380.0,1.40461378]
[1753594648022,0.03014084,118390.0,118380.0,1.40461378]
[1753594649220,0.03858721,118390.0,118380.0,1.40461378]
[1753594649459,0.03014084,118390.0,118380.0,1.40461378]
[1753594650281,0.02169461,118390.0,118380.0,1.40461378]
[1753594651623,0.03014084,118390.0,118380.0,1.40461378]
[1753594652964,0.02169461,118390.0,118380.0,1.40461378]
[1753594653598,0.03014084,118390.0,118380.0,1.40461378]
[1753594654885,0.03858721,118390.0,118380.0,1.40461378]
[1753594655083,0.03858714,118390.0,118380.0,1.40461378]
[1753594655800,0.04703358,118390.0,118380.0,1.40461378]
[1753594656003,0.03858714,118390.0,118380.0,1.08912839]
[1753594656221,0.03858714,118390.0,118380.0,1.40461378]
[1753594656222,0.04703358,118390.0,118380.0,1.40461378]
[1753594656429,0.04703358,118390.0,118380.0,0.773643]
[1753594656647,0.05548009,118390.0,118380.0,1.40461378]
[1753594657105,0.05759009,118390.0,118380.0,0.773643]
[1753594657320,0.05759009,118390.0,118380.0,1.40461378]
[1753594658174,0.05759009,118390.0,118380.0,1.20173378]
[1753594659694,0.05759052,118390.0,118380.0,1.20173378]
[1753594660473,0.04914394,118390.0,118380.0,1.20173378]
[1753594660699,0.04914401,118390.0,118380.0,0.570763]
[1753594660945,0.06484401,118390.0,118380.0,1.19859378]
[1753594661167,0.06484401,118390.0,118380.0,0.567623]
[1753594661371,0.06484401,118390.0,118380.0,1.19859378]
[1753594663997,0.05639743,118390.0,118380.0,1.19859378]
[1753594664223,0.09207394,118390.0,118380.0,0.88310839]
[1753594664663,0.11622052,118390.0,118380.0,1.19859378]
[1753594665349,0.10777394,118390.0,118380.0,1.19859378]
[1753594665567,0.10777394,118390.0,118380.0,0.88310839]
[1753594665849,0.06484394,118390.0,118380.0,0.88310839]
[1753594666298,0.06484394,118390.0,118380.0,0.566623]
[1753594666522,0.06484394,118390.0,118380.0,0.88210839]
[1753594666984,0.07134394,118390.0,118380.0,0.88210839]
[1753594669476,0.07979052,118390.0,118380.0,0.88210839]
[1753594670613,0.06289743,118390.0,118380.0,0.88210839]
[1753594670829,0.06289743,118390.0,118380.0,1.20064378]
[1753594671052,0.04719743,118390.0,118380.0,1.20064378]
[1753594673942,0.04719743,118390.0,118380.0,0.569673]
[1753594674191,0.04508743,118390.0,118380.0,1.20064378]
[1753594674629,0.03858743,118390.0,118380.0,1.20064378]
[1753594674824,0.04703401,118390.0,118380.0,1.20064378]
[1753594675405,0.05548066,118390.0,118380.0,1.20064378]
[1753594675788,0.05548066,118390.0,118380.0,0.569673]
[1753594676026,0.05548066,118390.0,118380.0,1.20064378]
[1753594676613,0.04703401,118390.0,118380.0,1.20064378]
[1753594678098,0.05548066,118390.0,118380.0,1.20064378]
[1753594678806,0.03858743,118390.0,118380.0,1.20064378]
[1753594679615,0.04703394,118390.0,118380.0,1.20064378]
[1753594679881,0.03014099,118390.0,118380.0,1.20064378]
[1753594680871,0.0301407,118390.0,118380.0,1.20064378]
[1753594681650,0.03858707,118390.0,118380.0,1.20064378]
[1753594681891,0.0301407,118390.0,118380.0,1.20064378]
[1753594682771,0.03858707,118390.0,118380.0,1.20064378]
[1753594682998,0.038587,118390.0,118380.0,1.20064378]
[1753594683420,0.0301407,118390.0,118380.0,1.20064378]
[1753594684391,0.02169447,118390.0,118380.0,1.20064378]
[1753594684810,0.01324846,118390.0,118380.0,1.20064378]
[1753594685239,0.01324846,118390.0,118380.0,1.21704378]
[1753594685669,0.01324846,118390.0,118380.0,1.23264378]
[1753594686451,0.01324846,118390.0,118380.0,1.21704378]
[1753594687348,0.02169447,118390.0,118380.0,1.21704378]
[1753594689380,0.04066699,118390.0,118380.0,0.569673]
[1753594689606,0.04911343,118390.0,118380.0,1.20064378]
[1753594690506,0.04066692,118390.0,118380.0,1.20064378]
[1753594690749,0.04911336,118390.0,118380.0,1.20064378]
[1753594692080,0.04066692,118390.0,118380.0,1.20064378]
[1753594692527,0.04911336,118390.0,118380.0,1.20064378]
[1753594692968,0.03858692,118390.0,118380.0,1.20064378]
[1753594693858,0.04703336,118390.0,118380.0,1.20064378]
[1753594694086,0.03858692,118390.0,118380.0,1.20064378]
[1753594694721,0.03858685,118390.0,118380.0,1.20064378]
[1753594695183,0.03014062,118390.0,118380.0,1.20064378]
[1753594695402,0.03014062,118390.0,118380.0,1.21704378]
[1753594696087,0.02169447,118390.0,118380.0,1.21704378]
[1753594696802,0.03014062,118390.0,118380.0,1.21704378]
[1753594700991,0.03858692,118390.0,118380.0,1.20064378]
[1753594701649,0.03858699,118390.0,118380.0,1.20064378]
[1753594703122,0.03858692,118390.0,118380.0,1.20064378]
[1753594704647,0.04703336,118390.0,118380.0,1.20064378]
[1753594705503,0.03858692,118390.0,118380.0,1.20064378]
[1753594705913,0.04703336,118390.0,118380.0,1.20064378]
[1753594706113,0.03858692,118390.0,118380.0,1.20064378]
[1753594706529,0.04703336,118390.0,118380.0,1.20064378]
[1753594706735,0.04703329,118390.0,118380.0,1.20064378]
[1753594708131,0.0554798,118390.0,118380.0,1.20064378]
[1753594708756,0.04703329,118390.0,118380.0,1.20064378]
[1753594708980,0.03858692,118390.0,118380.0,1.20064378]
[1753594711441,0.04703336,118390.0,118380.0,1.20064378]
[1753594712623,0.05547987,118390.0,118380.0,1.20064378]
[1753594713040,0.04703336,118390.0,118380.0,1.20064378]
[1753594713672,0.04703329,118390.0,118380.0,1.20064378]
[1753594715885,0.05547973,118390.0,118380.0,1.20064378]
[1753594716299,0.05548023,118390.0,118380.0,1.20064378]
[1753594716495,0.04703372,118390.0,118380.0,1.20064378]
[1753594718508,0.03858728,118390.0,118380.0,1.20064378]
[1753594720324,0.04703372,118390.0,118380.0,1.20064378]
[1753594720951,0.03858728,118390.0,118380.0,1.20064378]
[1753594721727,0.04508728,118390.0,118380.0,1.20064378]
[1753594724382,0.03664091,118390.0,118380.0,1.20064378]
[1753594727183,0.03014091,118390.0,118380.0,1.20064378]
[1753594727396,0.03858728,118390.0,118380.0,1.20064378]
[1753594727600,0.03014091,118390.0,118380.0,1.20064378]
[1753594728256,0.02169461,118390.0,118380.0,1.20064378]
[1753594728468,0.03014084,118390.0,118380.0,1.20064378]
[1753594728930,0.02169461,118390.0,118380.0,1.20064378]
[1753594729763,0.03014091,118390.0,118380.0,1.20064378]
[1753594730017,0.02169461,118390.0,118380.0,1.20064378]
[1753594730236,0.03014091,118390.0,118380.0,1.20064378]
[1753594730455,0.02169461,118390.0,118380.0,1.20064378]
[1753594730705,0.03014091,118390.0,118380.0,1.20064378]
[1753594731158,0.02169461,118390.0,118380.0,1.20064378]
[1753594732495,0.01324846,118390.0,118380.0,1.20064378]
[1753594732715,0.02169454,118390.0,118380.0,1.20064378]
[1753594737349,0.01324846,118390.0,118380.0,1.20064378]
[1753594737577,0.01324846,118390.0,118380.0,1.21694378]
[1753594738809,0.02169447,118390.0,118380.0,1.21694378]
[1753594739250,0.01324846,118390.0,118380.0,1.21694378]
[1753594745416,0.01324846,118390.0,118380.0,1.23314378]
[1753594748653,0.01324846,118390.0,118380.0,1.2505928]
[1753594751280,0.01324846,118390.0,118380.0,1.4534728]
[1753594752399,0.01324846,118390.0,118380.0,0.82250202]
[1753594752638,0.01324846,118390.0,118380.0,1.4534728]
[1753594761331,0.01324846,118390.0,118380.0,0.82250202]
[1753594761533,0.01324846,118390.0,118380.0,1.4534728]
[1753594764391,0.01324846,118390.0,118380.0,1.46212589]
[1753594764608,0.01324846,118390.0,118380.0,1.47119768]
[1753594764829,0.01324846,118390.0,118380.0,0.83115511]
[1753594765057,0.01324846,118390.0,118380.0,1.46212589]
[1753594765273,0.01324846,118390.0,118380.0,0.83115511]
[1753594765488,0.01324846,118390.0,118380.0,1.46212589]
[1753594770183,0.01324846,118390.0,118380.0,1.80212589]
[1753594770410,0.01324846,118390.0,118380.0,2.06762589]
[1753594771065,0.01324846,118390.0,118380.0,2.06862589]
[1753594771544,0.01324846,118390.0,118380.0,2.06962589]
[1753594773150,0.01324846,118390.0,118380.0,2.38511128]
[1753594773404,0.01324846,118390.0,118380.0,2.08287389]
[1753594777427,0.01974846,118390.0,118380.0,2.08287389]
[1753594778121,0.01974846,118390.0,118380.0,2.06962589]
[1753594782951,0.01324846,118390.0,118380.0,2.06962589]
[1753594788710,1e-08,118390.0,118380.0,2.06962589]
[1753594789759,1e-08,118390.0,118380.0,2.06862589]
[1753594789969,1e-08,118390.0,118380.0,2.06762589]
[1753594790462,1e-08,118390.0,118380.0,2.06862589]
[1753594791327,1e-08,118390.0,118380.0,2.06962589]
[1753594792625,1e-08,118390.0,118380.0,2.38511128]
[1753594792841,1e-08,118390.0,118380.0,2.43511128]
[1753594793438,1e-08,118390.0,118380.0,2.44181128]
[1753594793770,1e-08,118390.0,118380.0,2.44081128]
[1753594793959,1e-08,118390.0,118380.0,2.44381128]
[1753594794571,1e-08,118390.0,118380.0,2.44281128]
[1753594794656,1e-08,118390.0,118380.0,2.44681128]
[1753594802400,0.02926001,118390.0,118380.0,1.74629589]
[1753594802636,0.04526001,118390.0,118380.0,1.72884687]
[1753594803103,0.04526001,118390.0,118380.0,1.74629589]
[1753594803374,0.02926001,118390.0,118380.0,1.77040589]
[1753594803604,0.02926001,118390.0,118380.0,1.74629589]
[1753594803821,0.04526001,118390.0,118380.0,1.74629589]
[1753594805713,0.04526001,118390.0,118380.0,1.77040589]
[1753594808427,0.02926001,118390.0,118380.0,1.77242589]
[1753594809282,0.00502001,118390.0,118380.0,1.77242589]
[1753594809813,0.00205001,118390.0,118380.0,1.77242589]
[1753594812220,0.00205001,118390.0,118380.0,1.77544589]
[1753594817452,0.04426001,118390.0,118380.0,1.38082511]
[1753594817702,0.04426001,118390.0,118380.0,2.01091589]
[1753594818134,0.04426001,118390.0,118380.0,2.03502589]
[1753594818560,0.04426001,118390.0,118380.0,2.03704589]
[1753594818996,0.02002001,118390.0,118380.0,2.03704589]
[1753594819692,0.01705001,118390.0,118380.0,2.03704589]
[1753594821637,0.00205001,118390.0,118380.0,2.03704589]
[1753594822363,0.00205001,118390.0,118380.0,2.0283928]
[1753594827197,0.00205001,118390.0,118380.0,2.0315628]
[1753594827856,0.00205001,118390.0,118380.0,2.03999239]
[1753594828297,1e-08,118390.0,118380.0,2.03999239]
[1753594832262,1e-08,118390.0,118380.0,2.07169239]
[1753594835026,1e-08,118390.0,118380.0,2.05559239]
[1753594839555,1e-08,118390.0,118380.0,2.07119239]
[1753594841800,1e-08,118390.0,118380.0,1.44022161]
[1753594842014,1e-08,118390.0,118380.0,2.07119239]
[1753594842443,1e-08,118390.0,118380.0,1.93679239]
[1753594842656,1e-08,118390.0,118380.0,2.07067239]
[1753594843740,1e-08,118390.0,118380.0,2.05507239]
[1753594855314,1e-08,118390.0,118380.0,1.90559239]
[1753594855497,0.00213001,118390.0,118380.0,2.03943239]
[1753594856671,0.00213001,118390.0,118380.0,1.90559239]
[1753594856892,0.00213001,118390.0,118380.0,2.03943239]
[1753594857317,1e-08,118390.0,118380.0,2.03943239]
[1753594858625,1e-08,118390.0,118380.0,2.05593239]
[1753594859283,1e-08,118390.0,118380.0,2.07243239]
[1753594861421,1e-08,118390.0,118380.0,2.03943239]
[1753594862929,1e-08,118390.0,118380.0,1.90559239]
[1753594863150,1e-08,118390.0,118380.0,2.03943239]
[1753594864589,1e-08,118390.0,118380.0,1.40846161]
[1753594864829,1e-08,118390.0,118380.0,2.03943239]
[1753594865036,1e-08,118390.0,118380.0,2.04850418]
[1753594865256,1e-08,118390.0,118380.0,2.03943239]
[1753594869263,1e-08,118390.0,118380.0,1.90559239]
[1753594869538,1e-08,118390.0,118380.0,2.03939239]
[1753594870549,1e-08,118390.0,118380.0,2.09008239]
[1753594870854,1e-08,118390.0,118380.0,2.03939239]
[1753594872912,1e-08,118390.0,118380.0,1.40842161]
[1753594873133,1e-08,118390.0,118380.0,2.03939239]
[1753594880567,1e-08,118390.0,118380.0,1.90559239]
[1753594880801,0.00213001,118390.0,118380.0,2.03935239]
[1753594881846,0.06110001,118390.0,118380.0,2.03416239]
[1753594882578,0.04560001,118390.0,118380.0,2.03623239]
[1753594883243,0.06110001,118390.0,118380.0,2.03412239]
[1753594884276,0.06110001,118390.0,118380.0,1.40315161]
[1753594884493,0.06110001,118390.0,118380.0,2.03412239]
[1753594886559,0.06110001,118390.0,118380.0,2.03621239]
[1753594887200,0.03622001,118390.0,118380.0,2.03621239]
[1753594887420,0.03622001,118390.0,118380.0,2.0277828]
[1753594887647,0.03313001,118390.0,118380.0,2.0277828]
[1753594888438,0.03313001,118390.0,118380.0,0.89689202]
[1753594888439,0.05991001,118390.0,118380.0,0.89689202]
[1753594888689,0.05991001,118390.0,118380.0,1.06314839]
[1753594888921,0.06835609,118390.0,118380.0,1.06314839]
[1753594889371,0.08524861,118390.0,118380.0,1.06014839]
[1753594889598,0.08524861,118390.0,118380.0,0.745663]
[1753594890109,0.08524861,118390.0,118380.0,0.86741447]
[1753594890336,0.08524854,118390.0,118380.0,0.88493356]
[1753594890531,0.26262866,118390.0,118380.0,0.86741447]
[1753594890761,0.24573628,118390.0,118380.0,0.86741447]
[1753594890988,0.24573628,118390.0,118380.0,0.71624545]
[1753594891210,0.24573628,118390.0,118380.0,0.53148006]
[1753594891427,0.24573628,118390.0,118380.0,0.84696545]
[1753594891672,0.24573628,118390.0,118380.0,0.84796545]
[1753594892343,0.24573628,118390.0,118380.0,0.84596545]
[1753594892560,0.24573628,118390.0,118380.0,0.84592545]
[1753594893550,0.24573628,118390.0,118380.0,0.53036006]
[1753594893896,0.24573628,118390.0,118380.0,0.84584545]
[1753594894321,0.24573628,118390.0,118380.0,0.53036006]
[1753594895938,0.24573628,118390.0,118380.0,0.84584545]
[1753594899515,0.24573628,118390.0,118380.0,0.53036006]
[1753594899735,0.24573628,118390.0,118380.0,0.84584545]
[1753594900122,0.24573628,118390.0,118380.0,0.53036006]
[1753594900331,0.24573628,118390.0,118380.0,0.84584545]
[1753594902353,0.24573628,118390.0,118380.0,0.53036006]
[1753594902530,0.24573628,118390.0,118380.0,0.84584545]
[1753594905135,0.24573628,118390.0,118380.0,0.85429282]
[1753594905392,0.24573628,118390.0,118380.0,0.71620203]
[1753594905620,0.24573628,118390.0,118380.0,1.04850027]
[1753594905832,0.24573628,118390.0,118380.0,1.0653948]
[1753594906228,0.24573628,118390.0,118380.0,1.08228903]
[1753594906611,0.24573628,118390.0,118380.0,1.07384195]
[1753594908535,0.24573628,118390.0,118380.0,1.08228903]
[1753594909462,0.24573628,118390.0,118380.0,1.08228867]
[1753594910320,0.24573628,118390.0,118380.0,0.76680328]
[1753594910544,0.24573628,118390.0,118380.0,1.08228867]
[1753594913645,0.24573628,118390.0,118380.0,1.07384166]
[1753594914771,0.31942064,118390.0,118380.0,0.39572006]
[1753594914985,0.61801294,118390.0,118380.0,0.52964006]
[1753594915196,0.30252755,118390.0,118380.0,0.52964006]
[1753594915441,0.22884319,118390.0,118380.0,0.52964006]
[1753594915627,0.54432858,118390.0,118380.0,0.52964006]
[1753594916046,0.22884319,118390.0,118380.0,0.52964006]
[1753594916260,0.54432858,118390.0,118380.0,0.52964006]
[1753594916908,0.22884319,118390.0,118380.0,0.52964006]
[1753594917117,0.54432858,118390.0,118380.0,0.52964006]
[1753594919240,0.22884319,118390.0,118380.0,0.52964006]
[1753594919441,0.54432858,118390.0,118380.0,0.52964006]
[1753594920209,0.22884319,118390.0,118380.0,0.52964006]
[1753594920643,0.54432858,118390.0,118380.0,0.52964006]
[1753594923082,0.88432858,118390.0,118380.0,0.52964006]
[1753594925248,0.96880588,118390.0,118380.0,0.31124276]
[1753594925488,0.96880588,118390.0,118380.0,0.44588276]
[1753594926343,0.88432858,118390.0,118380.0,0.44588276]
[1753594931108,0.56884319,118390.0,118380.0,0.44588276]
[1753594931320,0.88432858,118390.0,118380.0,0.44588276]
[1753594931531,0.88432858,118390.0,118380.0,0.31124276]
[1753594931756,0.88432858,118390.0,118380.0,0.44560276]
[1753594933543,0.56884319,118390.0,118380.0,0.44560276]
[1753594933738,0.88432858,118390.0,118380.0,0.44560276]
[1753594934811,0.96880588,118390.0,118380.0,0.44560276]
[1753594935882,0.96880588,118390.0,118380.0,0.31124276]
[1753594936090,0.96880588,118390.0,118380.0,0.44528276]
[1753594936586,0.88432858,118390.0,118380.0,0.44528276]
[1753594939539,0.88432858,118390.0,118380.0,0.44508276]
[1753594942157,0.88432858,118390.0,118380.0,0.46998276]
[1753594942587,0.50893319,118390.0,118380.0,0.79070815]
[1753594942802,1e-08,118390.0,118380.0,1.41565947]
[1753594943018,1e-08,118390.0,118380.0,1.43310849]
[1753594947689,1e-08,118390.0,118380.0,1.69860849]
[1753594958334,1e-08,118390.0,118380.0,1.72429604]
[1753594965414,1e-08,118390.0,118380.0,1.45879604]
[1753594971318,1e-08,118390.0,118380.0,1.72429604]
[1753595004367,1e-08,118390.0,118380.0,1.70929604]
[1753595005348,1e-08,118390.0,118380.0,1.44379604]
[1753595005554,1e-08,118390.0,118380.0,1.45979604]
[1753595009829,1e-08,118390.0,118380.0,1.44379604]
[1753595011752,1e-08,118390.0,118380.0,1.42809604]
[1753595012367,0.00199001,118390.0,118380.0,1.42809604]
[1753595013988,0.00199001,118390.0,118380.0,0.79404526]
[1753595014171,0.00199001,118390.0,118380.0,1.42501604]
[1753595014411,0.01789001,118390.0,118380.0,1.42501604]
[1753595014619,0.04376001,118390.0,118380.0,1.42461604]
[1753595014814,0.04376001,118390.0,118380.0,1.26411604]
[1753595014965,0.05996001,118390.0,118380.0,1.39755604]
[1753595015803,0.05996001,118390.0,118380.0,1.66305604]
[1753595016214,0.05996001,118390.0,118380.0,1.68571604]
[1753595016821,0.05996001,118390.0,118380.0,1.66305604]
[1753595017445,0.05996001,118390.0,118380.0,1.63736849]
[1753595017667,0.04376001,118390.0,118380.0,1.66002849]
[1753595018091,0.04376001,118390.0,118380.0,1.66197849]
[1753595018298,0.02088001,118390.0,118380.0,1.66197849]
[1753595021810,0.01789001,118390.0,118380.0,1.66197849]
[1753595022018,0.01789001,118390.0,118380.0,1.68692827]
[1753595024035,0.01789001,118390.0,118380.0,1.05595749]
[1753595024270,0.04376001,118390.0,118380.0,1.68692827]
[1753595024521,0.04376001,118390.0,118380.0,1.68684827]
[1753595026288,0.01789001,118390.0,118380.0,1.68684827]
[1753595026668,0.05946001,118390.0,118380.0,1.05587749]
[1753595026874,0.05946001,118390.0,118380.0,1.68489827]
[1753595028986,0.05946001,118390.0,118380.0,1.68680827]
[1753595029206,0.05946001,118390.0,118380.0,1.05583749]
[1753595029426,0.05946001,118390.0,118380.0,1.68680827]
[1753595031411,0.00199001,118390.0,118380.0,1.68680827]
[1753595031616,0.00199001,118390.0,118380.0,1.68999827]
[1753595031821,0.00199001,118390.0,118380.0,1.68680827]
[1753595032030,0.01769001,118390.0,118380.0,1.68680827]
[1753595033699,0.01769001,118390.0,118380.0,1.42130827]
[1753595036505,0.06132001,118390.0,118380.0,1.06368386]
[1753595036919,0.06132001,118390.0,118380.0,1.37916925]
[1753595037688,0.06132001,118390.0,118380.0,1.40405925]
[1753595038576,0.06132001,118390.0,118380.0,0.77308847]
[1753595038789,0.06132001,118390.0,118380.0,1.40405925]
[1753595040070,0.06132001,118390.0,118380.0,0.77308847]
[1753595040283,0.06132001,118390.0,118380.0,1.40405925]
[1753595041101,0.06132001,118390.0,118380.0,0.77308847]
[1753595041274,0.06132001,118390.0,118380.0,1.40405925]
[1753595042582,0.03739001,118390.0,118380.0,1.40602925]
[1753595042795,0.01769001,118390.0,118380.0,1.40602925]
[1753595043677,0.01769001,118390.0,118380.0,1.40898925]
[1753595044113,1e-08,118390.0,118380.0,1.40898925]
[1753595047815,1e-08,118390.0,118380.0,0.77801847]
[1753595048032,0.01650001,118390.0,118380.0,1.40898925]
[1753595052253,0.01865001,118390.0,118380.0,0.77801847]
[1753595052506,0.01865001,118390.0,118380.0,1.40602925]
[1753595053246,0.01865001,118390.0,118380.0,1.40898925]
[1753595057595,0.01650001,118390.0,118380.0,1.40898925]
[1753595058014,0.01650001,118390.0,118380.0,0.77801847]
[1753595058271,1e-08,118390.0,118380.0,1.40898925]
[1753595058548,1e-08,118390.0,118380.0,0.77801847]
[1753595058746,1e-08,118390.0,118380.0,1.40898925]
[1753595064114,1e-08,118390.0,118380.0,1.44028925]
[1753595064330,1e-08,118390.0,118380.0,1.44936104]
[1753595064543,1e-08,118390.0,118380.0,1.44028925]
[1753595065489,1e-08,118390.0,118380.0,1.42498925]
[1753595067601,1e-08,118390.0,118380.0,1.40898925]
[1753595068467,1e-08,118390.0,118380.0,1.72383827]
[1753595068664,1e-08,118390.0,118380.0,2.03932366]
[1753595068927,1e-08,118390.0,118380.0,1.72383827]
[1753595069977,1e-08,118390.0,118380.0,1.72483827]
[1753595070190,1e-08,118390.0,118380.0,1.72583827]
[1753595081805,0.00208001,118390.0,118380.0,1.59259827]
[1753595082026,0.02938001,118390.0,118380.0,1.40565925]
[1753595082242,0.05392602,118390.0,118380.0,1.27281925]
[1753595082478,0.06972602,118390.0,118380.0,1.35581947]
[1753595082943,0.06972602,118390.0,118380.0,1.37326849]
[1753595083168,0.09506484,118390.0,118380.0,1.04033408]
[1753595083402,0.08661833,118390.0,118380.0,1.04033408]
[1753595084363,0.0950647,118390.0,118380.0,1.04033408]
[1753595084581,0.08661833,118390.0,118380.0,1.04033408]
[1753595085646,0.09506463,118390.0,118380.0,1.06626564]
[1753595086312,0.09506463,118390.0,118380.0,1.38175103]
[1753595087866,0.10351107,118390.0,118380.0,0.75078025]
[1753595088077,0.10351107,118390.0,118380.0,1.06626564]
[1753595088722,0.09506463,118390.0,118380.0,1.06626564]
[1753595089159,0.08661833,118390.0,118380.0,1.06626564]
[1753595089370,0.08661833,118390.0,118380.0,1.38175103]
[1753595089804,0.0950647,118390.0,118380.0,0.75078025]
[1753595090016,0.0950647,118390.0,118380.0,1.38175103]
[1753595090228,0.08661833,118390.0,118380.0,1.38175103]
[1753595090426,0.0781721,118390.0,118380.0,1.38175103]
[1753595090659,0.08661833,118390.0,118380.0,1.38175103]
[1753595091259,0.0781721,118390.0,118380.0,1.38175103]
[1753595091604,0.08661833,118390.0,118380.0,1.38175103]
[1753595092780,0.0781721,118390.0,118380.0,1.38175103]
[1753595093034,0.08661825,118390.0,118380.0,1.38175103]
[1753595093225,0.09506455,118390.0,118380.0,1.38175103]
[1753595094332,0.08661825,118390.0,118380.0,1.38175103]
[1753595094543,0.09506448,118390.0,118380.0,1.06626564]
[1753595094925,0.10351085,118390.0,118380.0,1.06626564]
[1753595095361,0.09506448,118390.0,118380.0,1.06626564]
[1753595095800,0.09506448,118390.0,118380.0,1.09008564]
[1753595096021,0.09506448,118390.0,118380.0,1.40557103]
[1753595096768,0.10351078,118390.0,118380.0,1.40557103]
[1753595098478,0.08661825,118390.0,118380.0,1.40557103]
[1753595098707,0.09506455,118390.0,118380.0,1.40557103]
[1753595098934,0.09506455,118390.0,118380.0,1.40755103]
[1753595100209,0.10351099,118390.0,118380.0,1.40755103]
[1753595100458,0.09506455,118390.0,118380.0,1.40755103]
[1753595103037,0.09506448,118390.0,118380.0,1.40755103]
[1753595103280,0.07085448,118390.0,118380.0,1.40755103]
[1753595103876,0.06776448,118390.0,118380.0,1.40755103]
[1753595105790,0.07621085,118390.0,118380.0,1.40755103]
[1753595106573,0.06776448,118390.0,118380.0,1.40755103]
[1753595107037,0.07621085,118390.0,118380.0,1.40755103]
[1753595107453,0.07621128,118390.0,118380.0,1.40755103]
[1753595107671,0.25564251,118390.0,118380.0,0.60104637]
[1753595107880,0.25564251,118390.0,118380.0,1.05761891]
[1753595108302,0.25564251,118390.0,118380.0,1.06606599]
[1753595108516,0.24719614,118390.0,118380.0,1.05761891]
[1753595109605,0.24719614,118390.0,118380.0,1.03164743]
[1753595109820,0.2387497,118390.0,118380.0,1.03164743]
[1753595110449,0.2387497,118390.0,118380.0,1.03809458]
[1753595111366,0.2387497,118390.0,118380.0,1.04654166]
[1753595113063,0.2387497,118390.0,118380.0,0.73105627]
[1753595113306,0.2387497,118390.0,118380.0,1.0212002]
[1753595113850,0.2387497,118390.0,118380.0,1.02964735]
[1753595115318,0.2387497,118390.0,118380.0,0.71416196]
[1753595115525,0.2387497,118390.0,118380.0,1.02964735]
[1753595117097,0.2387497,118390.0,118380.0,1.05346735]
[1753595118464,0.2387497,118390.0,118380.0,1.06191443]
[1753595119203,0.2387497,118390.0,118380.0,1.05346735]
[1753595120156,0.2387497,118390.0,118380.0,1.06191443]
[1753595121211,0.2387497,118390.0,118380.0,1.05346735]
[1753595121413,0.2387497,118390.0,118380.0,1.06191436]
[1753595121617,0.2387497,118390.0,118380.0,1.06389436]
[1753595122378,0.0867094,118390.0,118380.0,1.0723413]
[1753595122590,0.0593194,118390.0,118380.0,1.08078817]
[1753595122809,0.06776605,118390.0,118380.0,1.08381817]
[1753595123020,0.06776605,118390.0,118380.0,1.0753713]
[1753595123228,0.06776605,118390.0,118380.0,1.06692436]
[1753595125465,0.06776605,118390.0,118380.0,1.06660724]
[1753595125891,0.23669923,118390.0,118380.0,1.05816023]
[1753595126112,0.22825293,118390.0,118380.0,1.05816023]
[1753595126566,0.21135984,118390.0,118380.0,1.04971308]
[1753595126781,0.21135984,118390.0,118380.0,1.04668308]
[1753595127197,0.23795984,118390.0,118380.0,1.04668308]
[1753595127446,0.22951319,118390.0,118380.0,0.84348833]
[1753595128230,0.22951319,118390.0,118380.0,0.86746833]
[1753595130070,0.22951319,118390.0,118380.0,1.04486308]
[1753595130280,0.22951319,118390.0,118380.0,0.73148769]
[1753595130491,0.22951319,118390.0,118380.0,1.05542045]
[1753595130701,0.20598319,118390.0,118380.0,1.05542045]
[1753595131244,0.20291319,118390.0,118380.0,1.05542045]
[1753595131461,0.20291319,118390.0,118380.0,1.06386768]
[1753595132100,0.20291319,118390.0,118380.0,1.06694768]
[1753595132600,0.20291319,118390.0,118380.0,1.07539483]